{"text_format":"3","workbook":"xlsx","n_sheets":1,"sheets":["Протокол ШЭ ВОШ по предмету"],"not_rendered":{"external_links":1,"defined_names":1},"read":"whole","date_system":"1900"}

{"sheet":"Протокол ШЭ ВОШ по предмету","index":0,"n_rows":24,"n_cols":12,"rows_kept":24}
["№","Фамилия","Пол","Участник с ОВЗ (да/нет)","Класс обучения","Класс участия","Балл","Максимальный балл","Статус","Призёр муниципального этапа прошлого года","ФИО учителя","Место работы учителя"]
[1,"Закиров К.И.","м","нет",4,4,24,40,"призер","нет","Хасанова Ляля Кавиевна","муниципальное бюджетное общеобразовательное учреждение \"Тимяшевская средняя общеобразовательная школа\" муниципального образования \"Лениногорский муниципальный район\" Республики Татарстан"]
[2,"Шафигуллин Р.Р.","м","нет",4,4,23,40,"призер","нет","Хасанова Ляля Кавиевна","муниципальное бюджетное общеобразовательное учреждение \"Тимяшевская средняя общеобразовательная школа\" муниципального образования \"Лениногорский муниципальный район\" Республики Татарстан"]
[3,"Динкаев А.И.","м","нет",4,4,22,40,"призер","нет","Хасанова Ляля Кавиевна","муниципальное бюджетное общеобразовательное учреждение \"Тимяшевская средняя общеобразовательная школа\" муниципального образования \"Лениногорский муниципальный район\" Республики Татарстан"]
[4,"Худоерова У.О.","ж","нет",4,4,20,40,"призер","нет","Байкарова Ольга Юрьевна","муниципальное бюджетное общеобразовательное учреждение \"Тимяшевская средняя общеобразовательная школа\" муниципального образования \"Лениногорский муниципальный район\" Республики Татарстан"]
[5,"Качалов Р.А.","м","нет",4,4,18,40,"участник","нет","Байкарова Ольга Юрьевна","муниципальное бюджетное общеобразовательное учреждение \"Тимяшевская средняя общеобразовательная школа\" муниципального образования \"Лениногорский муниципальный район\" Республики Татарстан"]
[6,"Гафиятуллина Л.З.","ж","нет",4,4,32,40,"победитель","нет","Байкарова Ольга Юрьевна","муниципальное бюджетное общеобразовательное учреждение \"Тимяшевская средняя общеобразовательная школа\" муниципального образования \"Лениногорский муниципальный район\" Республики Татарстан"]
[7,"Потапов Т.А.","м","нет",3,3,22,40,"призер","нет","Ямалтдинова Гузель Илдаровна","муниципальное бюджетное общеобразовательное учреждение \"Тимяшевская средняя общеобразовательная школа\" муниципального образования \"Лениногорский муниципальный район\" Республики Татарстан"]
[8,"Хайрова Э.М.","ж","нет",3,3,23,40,"призер","нет","Ямалтдинова Гузель Илдаровна","муниципальное бюджетное общеобразовательное учреждение \"Тимяшевская средняя общеобразовательная школа\" муниципального образования \"Лениногорский муниципальный район\" Республики Татарстан"]
[9,"Шаймарданова А.И.","ж","нет",3,3,19,40,"участник","нет","Ямалтдинова Гузель Илдаровна","муниципальное бюджетное общеобразовательное учреждение \"Тимяшевская средняя общеобразовательная школа\" муниципального образования \"Лениногорский муниципальный район\" Республики Татарстан"]
[10,"Мухаммадиева Л.Р.","ж","нет",3,3,21,40,"призер","нет","Ямалтдинова Гузель Илдаровна","муниципальное бюджетное общеобразовательное учреждение \"Тимяшевская средняя общеобразовательная школа\" муниципального образования \"Лениногорский муниципальный район\" Республики Татарстан"]
[11,"Белофастов А.Ю.","м","нет",3,3,19,40,"участник","нет","Ямалтдинова Гузель Илдаровна","муниципальное бюджетное общеобразовательное учреждение \"Тимяшевская средняя общеобразовательная школа\" муниципального образования \"Лениногорский муниципальный район\" Республики Татарстан"]
[12,"Максимов Р.Д.","м","нет",3,3,21,40,"призер","нет","Ямалтдинова Гузель Илдаровна","муниципальное бюджетное общеобразовательное учреждение \"Тимяшевская средняя общеобразовательная школа\" муниципального образования \"Лениногорский муниципальный район\" Республики Татарстан"]
[13,"Камалтдинова И.И.",{"$f":"'[1]Протокол ШЭ ВОШ по предмету'!F2","v":"ж"},{"$f":"'[1]Протокол ШЭ ВОШ по предмету'!G2","v":"нет"},{"$f":"'[1]Протокол ШЭ ВОШ по предмету'!H2","v":6},{"$f":"'[1]Протокол ШЭ ВОШ по предмету'!I2","v":6},{"$f":"'[1]Протокол ШЭ ВОШ по предмету'!J2","v":17},{"$f":"'[1]Протокол ШЭ ВОШ по предмету'!K2","v":50},{"$f":"'[1]Протокол ШЭ ВОШ по предмету'!L2","v":"участник"},{"$f":"'[1]Протокол ШЭ ВОШ по предмету'!M2","v":"нет"},{"$f":"'[1]Протокол ШЭ ВОШ по предмету'!N2","v":"Валеева Гульфия Гайсовна"},"муниципальное бюджетное общеобразовательное учреждение \"Тимяшевская средняя общеобразовательная школа\" муниципального образования \"Лениногорский муниципальный район\" Республики Татарстан"]
[14,"Загиров Р.Р.",{"$f":"'[1]Протокол ШЭ ВОШ по предмету'!F3","v":"м "},{"$f":"'[1]Протокол ШЭ ВОШ по предмету'!G3","v":"нет"},{"$f":"'[1]Протокол ШЭ ВОШ по предмету'!H3","v":7},{"$f":"'[1]Протокол ШЭ ВОШ по предмету'!I3","v":7},{"$f":"'[1]Протокол ШЭ ВОШ по предмету'!J3","v":113},{"$f":"'[1]Протокол ШЭ ВОШ по предмету'!K3","v":150},{"$f":"'[1]Протокол ШЭ ВОШ по предмету'!L3","v":"победитель"},{"$f":"'[1]Протокол ШЭ ВОШ по предмету'!M3","v":"да"},{"$f":"'[1]Протокол ШЭ ВОШ по предмету'!N3","v":"Валеева Гульфия Гайсовна"},"муниципальное бюджетное общеобразовательное учреждение \"Тимяшевская средняя общеобразовательная школа\" муниципального образования \"Лениногорский муниципальный район\" Республики Татарстан"]
[15,"Саримова Д.Р.",{"$f":"'[1]Протокол ШЭ ВОШ по предмету'!F4","v":"ж"},{"$f":"'[1]Протокол ШЭ ВОШ по предмету'!G4","v":"нет"},{"$f":"'[1]Протокол ШЭ ВОШ по предмету'!H4","v":6},{"$f":"'[1]Протокол ШЭ ВОШ по предмету'!I4","v":6},{"$f":"'[1]Протокол ШЭ ВОШ по предмету'!J4","v":34},{"$f":"'[1]Протокол ШЭ ВОШ по предмету'!K4","v":50},{"$f":"'[1]Протокол ШЭ ВОШ по предмету'!L4","v":"призер"},{"$f":"'[1]Протокол ШЭ ВОШ по предмету'!M4","v":"нет"},{"$f":"'[1]Протокол ШЭ ВОШ по предмету'!N4","v":"Валеева Гульфия Гайсовна"},"муниципальное бюджетное общеобразовательное учреждение \"Тимяшевская средняя общеобразовательная школа\" муниципального образования \"Лениногорский муниципальный район\" Республики Татарстан"]
[16,"Нуртдинов Д.И.",{"$f":"'[1]Протокол ШЭ ВОШ по предмету'!F5","v":"м "},{"$f":"'[1]Протокол ШЭ ВОШ по предмету'!G5","v":"нет"},{"$f":"'[1]Протокол ШЭ ВОШ по предмету'!H5","v":6},{"$f":"'[1]Протокол ШЭ ВОШ по предмету'!I5","v":6},{"$f":"'[1]Протокол ШЭ ВОШ по предмету'!J5","v":22},{"$f":"'[1]Протокол ШЭ ВОШ по предмету'!K5","v":50},{"$f":"'[1]Протокол ШЭ ВОШ по предмету'!L5","v":"призер"},{"$f":"'[1]Протокол ШЭ ВОШ по предмету'!M5","v":"нет"},{"$f":"'[1]Протокол ШЭ ВОШ по предмету'!N5","v":"Валеева Гульфия Гайсовна"},"муниципальное бюджетное общеобразовательное учреждение \"Тимяшевская средняя общеобразовательная школа\" муниципального образования \"Лениногорский муниципальный район\" Республики Татарстан"]
[17,"Вагизов А.Ф.",{"$f":"'[1]Протокол ШЭ ВОШ по предмету'!F6","v":"м "},{"$f":"'[1]Протокол ШЭ ВОШ по предмету'!G6","v":"нет"},{"$f":"'[1]Протокол ШЭ ВОШ по предмету'!H6","v":5},{"$f":"'[1]Протокол ШЭ ВОШ по предмету'!I6","v":5},{"$f":"'[1]Протокол ШЭ ВОШ по предмету'!J6","v":16},{"$f":"'[1]Протокол ШЭ ВОШ по предмету'!K6","v":50},{"$f":"'[1]Протокол ШЭ ВОШ по предмету'!L6","v":"участник"},{"$f":"'[1]Протокол ШЭ ВОШ по предмету'!M6","v":"нет"},{"$f":"'[1]Протокол ШЭ ВОШ по предмету'!N6","v":"Валеева Гульфия Гайсовна"},"муниципальное бюджетное общеобразовательное учреждение \"Тимяшевская средняя общеобразовательная школа\" муниципального образования \"Лениногорский муниципальный район\" Республики Татарстан"]
[18,"Гильмутдинов Р.Ф.",{"$f":"'[1]Протокол ШЭ ВОШ по предмету'!F7","v":"м "},{"$f":"'[1]Протокол ШЭ ВОШ по предмету'!G7","v":"нет"},{"$f":"'[1]Протокол ШЭ ВОШ по предмету'!H7","v":7},{"$f":"'[1]Протокол ШЭ ВОШ по предмету'!I7","v":7},{"$f":"'[1]Протокол ШЭ ВОШ по предмету'!J7","v":60},{"$f":"'[1]Протокол ШЭ ВОШ по предмету'!K7","v":150},{"$f":"'[1]Протокол ШЭ ВОШ по предмету'!L7","v":"участник"},{"$f":"'[1]Протокол ШЭ ВОШ по предмету'!M7","v":"нет"},{"$f":"'[1]Протокол ШЭ ВОШ по предмету'!N7","v":"Валеева Гульфия Гайсовна"},"муниципальное бюджетное общеобразовательное учреждение \"Тимяшевская средняя общеобразовательная школа\" муниципального образования \"Лениногорский муниципальный район\" Республики Татарстан"]
[19,"Фатхуллин А.Т.",{"$f":"'[1]Протокол ШЭ ВОШ по предмету'!F8","v":"м "},{"$f":"'[1]Протокол ШЭ ВОШ по предмету'!G8","v":"нет"},{"$f":"'[1]Протокол ШЭ ВОШ по предмету'!H8","v":8},{"$f":"'[1]Протокол ШЭ ВОШ по предмету'!I8","v":8},{"$f":"'[1]Протокол ШЭ ВОШ по предмету'!J8","v":75},{"$f":"'[1]Протокол ШЭ ВОШ по предмету'!K8","v":150},{"$f":"'[1]Протокол ШЭ ВОШ по предмету'!L8","v":"призер"},{"$f":"'[1]Протокол ШЭ ВОШ по предмету'!M8","v":"нет"},{"$f":"'[1]Протокол ШЭ ВОШ по предмету'!N8","v":"Валеева Гульфия Гайсовна"},"муниципальное бюджетное общеобразовательное учреждение \"Тимяшевская средняя общеобразовательная школа\" муниципального образования \"Лениногорский муниципальный район\" Республики Татарстан"]
[20,"Загретдинова А.Р.",{"$f":"'[1]Протокол ШЭ ВОШ по предмету'!F9","v":"ж"},{"$f":"'[1]Протокол ШЭ ВОШ по предмету'!G9","v":"нет"},{"$f":"'[1]Протокол ШЭ ВОШ по предмету'!H9","v":8},{"$f":"'[1]Протокол ШЭ ВОШ по предмету'!I9","v":8},{"$f":"'[1]Протокол ШЭ ВОШ по предмету'!J9","v":58},{"$f":"'[1]Протокол ШЭ ВОШ по предмету'!K9","v":150},{"$f":"'[1]Протокол ШЭ ВОШ по предмету'!L9","v":"участник"},{"$f":"'[1]Протокол ШЭ ВОШ по предмету'!M9","v":"нет"},{"$f":"'[1]Протокол ШЭ ВОШ по предмету'!N9","v":"Валеева Гульфия Гайсовна"},"муниципальное бюджетное общеобразовательное учреждение \"Тимяшевская средняя общеобразовательная школа\" муниципального образования \"Лениногорский муниципальный район\" Республики Татарстан"]
[21,"Зиатдинова М.Р.",{"$f":"'[1]Протокол ШЭ ВОШ по предмету'!F10","v":"ж"},{"$f":"'[1]Протокол ШЭ ВОШ по предмету'!G10","v":"нет"},{"$f":"'[1]Протокол ШЭ ВОШ по предмету'!H10","v":10},{"$f":"'[1]Протокол ШЭ ВОШ по предмету'!I10","v":10},{"$f":"'[1]Протокол ШЭ ВОШ по предмету'!J10","v":114},{"$f":"'[1]Протокол ШЭ ВОШ по предмету'!K10","v":150},{"$f":"'[1]Протокол ШЭ ВОШ по предмету'!L10","v":"победитель"},{"$f":"'[1]Протокол ШЭ ВОШ по предмету'!M10","v":"да"},{"$f":"'[1]Протокол ШЭ ВОШ по предмету'!N10","v":"Валеева Гульфия Гайсовна"},"муниципальное бюджетное общеобразовательное учреждение \"Тимяшевская средняя общеобразовательная школа\" муниципального образования \"Лениногорский муниципальный район\" Республики Татарстан"]
[22,"Шабазова А.Ф.",{"$f":"'[1]Протокол ШЭ ВОШ по предмету'!F11","v":"ж"},{"$f":"'[1]Протокол ШЭ ВОШ по предмету'!G11","v":"нет"},{"$f":"'[1]Протокол ШЭ ВОШ по предмету'!H11","v":8},{"$f":"'[1]Протокол ШЭ ВОШ по предмету'!I11","v":8},{"$f":"'[1]Протокол ШЭ ВОШ по предмету'!J11","v":64},{"$f":"'[1]Протокол ШЭ ВОШ по предмету'!K11","v":150},{"$f":"'[1]Протокол ШЭ ВОШ по предмету'!L11","v":"участник"},{"$f":"'[1]Протокол ШЭ ВОШ по предмету'!M11","v":"нет"},{"$f":"'[1]Протокол ШЭ ВОШ по предмету'!N11","v":"Валеева Гульфия Гайсовна"},"муниципальное бюджетное общеобразовательное учреждение \"Тимяшевская средняя общеобразовательная школа\" муниципального образования \"Лениногорский муниципальный район\" Республики Татарстан"]
[23,"Валуев А.А.",{"$f":"'[1]Протокол ШЭ ВОШ по предмету'!F12","v":"м "},{"$f":"'[1]Протокол ШЭ ВОШ по предмету'!G12","v":"нет"},{"$f":"'[1]Протокол ШЭ ВОШ по предмету'!H12","v":8},{"$f":"'[1]Протокол ШЭ ВОШ по предмету'!I12","v":8},{"$f":"'[1]Протокол ШЭ ВОШ по предмету'!J12","v":61},{"$f":"'[1]Протокол ШЭ ВОШ по предмету'!K12","v":150},{"$f":"'[1]Протокол ШЭ ВОШ по предмету'!L12","v":"участник"},{"$f":"'[1]Протокол ШЭ ВОШ по предмету'!M12","v":"нет"},{"$f":"'[1]Протокол ШЭ ВОШ по предмету'!N12","v":"Валеева Гульфия Гайсовна"},"муниципальное бюджетное общеобразовательное учреждение \"Тимяшевская средняя общеобразовательная школа\" муниципального образования \"Лениногорский муниципальный район\" Республики Татарстан"]